bitfinex/quotes_BTCUSD_20250314
["timestamp","ask_amount","ask_price","bid_price","bid_amount"]
[1741979601083,5e-07,85109.0,85108.0,0.152549]
[1741979601377,5e-07,85109.0,85108.0,0.1348]
[1741979601570,5e-07,85109.0,85108.0,0.1408]
[1741979603090,5e-07,85109.0,85108.0,0.006]
[1741979603267,5e-07,85109.0,85108.0,0.14076]
[1741979603489,0.01842292,85109.0,85108.0,0.14076]
[1741979604498,0.01842292,85109.0,85108.0,0.22226]
[1741979613115,0.01842292,85109.0,85108.0,1.72226]
[1741979614232,0.01842292,85109.0,85108.0,1.71626]
[1741979614591,0.01842292,85109.0,85108.0,1.72226]
[1741979615011,0.01842292,85109.0,85108.0,1.71626]
[1741979615370,0.01842292,85109.0,85108.0,1.72226]
[1741979615581,0.01842292,85109.0,85108.0,0.14076]
[1741979617058,0.01842292,85109.0,85108.0,0.13476]
[1741979617217,0.01842292,85109.0,85108.0,0.14076]
[1741979618562,0.01842292,85109.0,85108.0,0.13476]
[1741979618986,0.01842292,85109.0,85108.0,0.14076]
[1741979619544,0.01842292,85109.0,85108.0,0.141099]
[1741979620156,0.01842292,85109.0,85108.0,0.135099]
[1741979620519,0.01842292,85109.0,85108.0,0.141099]
[1741979621045,0.01842292,85109.0,85108.0,0.135099]
[1741979621241,0.01842292,85109.0,85108.0,0.141099]
[1741979623523,5e-07,85109.0,85108.0,0.141099]
[1741979624980,5e-07,85109.0,85108.0,0.006339]
[1741979625194,5e-07,85109.0,85108.0,0.141099]
[1741979627219,5e-07,85109.0,85108.0,0.229748]
[1741979627439,5e-07,85109.0,85108.0,0.464743]
[1741979630997,5e-07,85109.0,85108.0,0.387843]
[1741979633622,0.01842299,85109.0,85108.0,0.387843]
[1741979636343,0.01842299,85109.0,85108.0,0.387843]
[1741979639664,0.01842299,85109.0,85108.0,0.241334]
[1741979639869,0.01842299,85109.0,85108.0,0.376094]
[1741979640518,0.01842299,85109.0,85108.0,0.387843]
[1741979641213,0.01842299,85109.0,85108.0,0.513843]
[1741979644324,0.01842299,85109.0,85108.0,0.507843]
[1741979645694,0.01842299,85109.0,85108.0,0.513843]
[1741979646520,1.9e-07,85120.0,85119.0,0.246713]
[1741979646896,1.9e-07,85120.0,85119.0,0.323113]
[1741979647294,0.0001696,85124.0,85119.0,0.323113]
[1741979647295,7.9e-07,85124.0,85123.0,0.323101]
[1741979647713,7.9e-07,85124.0,85123.0,0.457821]
[1741979648226,7.9e-07,85124.0,85123.0,0.47469949]
[1741979648424,7.9e-07,85124.0,85123.0,0.52019949]
[1741979649076,7.9e-07,85124.0,85123.0,0.49686616]
[1741979649285,7.9e-07,85124.0,85123.0,0.51140701]
[1741979649488,7.9e-07,85124.0,85123.0,0.52315401]
[1741979649833,3.5e-07,85124.0,85123.0,2.02315401]
[1741979650035,0.0001696,85137.0,85136.0,0.323063]
[1741979650208,0.0001696,85137.0,85136.0,1.069143]
[1741979650432,0.01858663,85137.0,85136.0,1.203863]
[1741979652706,0.01858663,85137.0,85136.0,1.127463]
[1741979653131,0.01858663,85137.0,85136.0,1.133463]
[1741979653486,0.01858663,85137.0,85136.0,1.127463]
[1741979653823,0.01858663,85137.0,85136.0,1.133463]
[1741979654254,0.01858663,85137.0,85136.0,1.121718]
[1741979655037,0.0001696,85137.0,85136.0,1.121718]
[1741979655353,0.0001696,85137.0,85136.0,0.375638]
[1741979655562,0.311744,85147.0,85136.0,0.375638]
[1741979655924,0.23489,85146.0,85140.0,0.234904]
[1741979657268,0.011744,85144.0,85138.0,0.234912]
[1741979657461,0.011745,85142.0,85140.0,0.002]
[1741979657667,0.011745,85141.0,85140.0,0.002]
[1741979657882,0.311744,85143.0,85140.0,0.002]
[1741979658080,0.01841901,85142.0,85140.0,0.002]
[1741979658846,0.311745,85141.0,85140.0,0.002]
[1741979659119,0.534914,85138.0,85136.0,0.13472]
[1741979659340,0.546659,85138.0,85136.0,0.13472]
[1741979659701,0.3,85138.0,85136.0,0.234916]
[1741979660097,0.011745,85140.0,85134.0,0.234921]
[1741979660739,0.3,85138.0,85133.0,0.234925]
[1741979660946,0.3,85138.0,85136.0,0.005]
[1741979660947,0.311745,85138.0,85136.0,0.005]
[1741979661110,0.3,85137.0,85136.0,0.005]
[1741979662104,0.3,85136.0,85135.0,0.234918]
[1741979663488,0.3,85141.0,85138.0,0.23491]
[1741979663667,0.3,85141.0,85137.0,0.234913]
[1741979665754,0.546651,85141.0,85135.0,0.234918]
[1741979666152,0.234909,85140.0,85138.0,0.004]
[1741979666826,0.546651,85141.0,85136.0,0.234917]
[1741979666827,0.3,85141.0,85136.0,0.234917]
[1741979667059,0.3,85141.0,85135.0,0.004]
[1741979667539,0.3,85141.0,85134.0,0.234921]
[1741979667739,0.33016401,85142.0,85138.0,0.004]
[1741979667896,0.56506701,85142.0,85138.0,0.004]
[1741979669339,0.234905,85141.0,85138.0,0.004]
[1741979669555,0.234908,85140.0,85138.0,0.004]
[1741979669703,0.234908,85140.0,85137.0,0.0003388]
[1741979670537,0.3,85138.0,85137.0,0.0003388]
[1741979670814,0.311745,85138.0,85137.0,0.0003388]
[1741979671014,0.3,85138.0,85137.0,0.0003388]
[1741979671566,0.33016401,85142.0,85137.0,0.0003388]
[1741979671816,0.234905,85141.0,85137.0,0.0003388]
[1741979672031,0.3,85140.0,85137.0,0.0003388]
[1741979672218,0.3,85138.0,85137.0,0.0003388]
[1741979672634,0.3,85138.0,85137.0,0.0043388]
[1741979673193,0.011745,85139.0,85137.0,0.0043388]
[1741979673395,0.011745,85139.0,85137.0,0.0003388]
[1741979673795,0.3,85138.0,85137.0,0.0053388]
[1741979674596,0.311745,85138.0,85137.0,0.0053388]
[1741979675189,0.311745,85138.0,85137.0,0.0003388]
[1741979675602,0.311745,85138.0,85137.0,0.0043388]
[1741979676254,0.311745,85138.0,85137.0,0.0003388]
[1741979676449,0.3,85138.0,85137.0,0.0053388]
[1741979678989,0.246653,85140.0,85137.0,0.0053388]
[1741979679931,0.311745,85141.0,85137.0,0.2352538]
[1741979680293,0.311745,85141.0,85137.0,0.2392538]
[1741979680518,0.54665,85141.0,85137.0,0.2392538]
[1741979680957,0.54665,85141.0,85137.0,0.2352538]
[1741979681278,0.3,85141.0,85137.0,0.2352538]
[1741979681838,0.246654,85140.0,85137.0,0.0003388]
[1741979682073,0.03016401,85142.0,85137.0,0.0003388]
[1741979682696,0.03016401,85142.0,85137.0,0.0043388]
[1741979682892,0.1,85141.0,85137.0,0.0043388]
[1741979683106,0.1,85141.0,85137.0,0.0003388]
[1741979683394,0.334905,85141.0,85137.0,0.0003388]
[1741979683599,0.334905,85141.0,85137.0,0.0043388]
[1741979684025,0.3,85140.0,85137.0,0.0003388]
[1741979684359,0.3,85140.0,85137.0,0.0043388]
[1741979685562,0.534908,85140.0,85137.0,0.0043388]
[1741979685965,0.546653,85140.0,85137.0,0.0043388]
[1741979686124,0.3,85138.0,85137.0,0.0043388]
[1741979686329,0.3,85138.0,85137.0,0.0003388]
[1741979686523,0.3,85138.0,85137.0,0.0043388]
[1741979686935,0.311745,85138.0,85137.0,0.0003388]
[1741979687355,0.311745,85138.0,85137.0,0.0053388]
[1741979687970,0.4299314,85138.0,85137.0,0.0053388]
[1741979688173,0.311745,85138.0,85137.0,0.0053388]
[1741979688369,5.475178,85138.0,85137.0,0.0053388]
[1741979688578,5.14208585,85138.0,85137.0,0.0053388]
[1741979689591,5.14208585,85138.0,85137.0,0.0003388]
[1741979689748,5.14208585,85138.0,85137.0,0.0033388]
[1741979690356,3.48248585,85138.0,85137.0,0.0003388]
[1741979690769,3.25398585,85138.0,85137.0,0.0003388]
[1741979691211,3.37356088,85138.0,85137.0,0.0003388]
[1741979691619,3.50824088,85138.0,85137.0,0.0003388]
[1741979691848,3.50824088,85138.0,85137.0,8e-07]
[1741979691849,4.12484088,85138.0,85137.0,8e-07]
[1741979692052,1.25004088,85138.0,85137.0,8e-07]
[1741979692707,1.2684645,85138.0,85137.0,8e-07]
[1741979693388,1.2184645,85138.0,85137.0,8e-07]
[1741979693592,1.2684645,85138.0,85137.0,8e-07]
[1741979693967,1.2184645,85138.0,85137.0,8e-07]
[1741979694374,1.2684645,85138.0,85137.0,8e-07]
[1741979695575,1.2184645,85138.0,85137.0,8e-07]
[1741979695731,1.2684645,85138.0,85137.0,8e-07]
[1741979696133,1.14888947,85138.0,85137.0,8e-07]
[1741979697364,1.14538947,85138.0,85137.0,8e-07]
[1741979697575,1.01070947,85138.0,85137.0,8e-07]
[1741979697768,1.14538947,85138.0,85137.0,8e-07]
[1741979698589,1.01070947,85138.0,85137.0,8e-07]
[1741979698782,1.14538947,85138.0,85137.0,8e-07]
[1741979698984,1.01070947,85138.0,85137.0,8e-07]
[1741979699270,1.14538947,85138.0,85137.0,8e-07]
[1741979700576,1.2649645,85138.0,85137.0,8e-07]
[1741979701442,1.24654088,85138.0,85137.0,8e-07]
[1741979701638,1.19654088,85138.0,85137.0,8e-07]
[1741979701842,1.24654088,85138.0,85137.0,8e-07]
[1741979704115,1.26496571,85138.0,85137.0,8e-07]
[1741979704890,1.26500571,85138.0,85137.0,8e-07]
[1741979705233,1.26517541,85138.0,85137.0,8e-07]
[1741979705948,1.13045541,85138.0,85137.0,8e-07]
[1741979706148,0.4258147,85138.0,85137.0,8e-07]
[1741979706994,0.7258147,85138.0,85137.0,8e-07]
[1741979707198,0.74535555,85138.0,85137.0,8e-07]
[1741979708358,0.3,85121.0,85118.0,0.02758523]
[1741979708588,0.546713,85119.0,85118.0,0.02758523]
[1741979708794,5.657246,85119.0,85118.0,0.02758523]
[1741979709499,5.67567178,85119.0,85118.0,0.02758523]
[1741979710053,5.67767178,85119.0,85118.0,0.02758523]
[1741979710275,5.69221263,85119.0,85118.0,0.02758523]
[1741979710475,5.69721263,85119.0,85118.0,0.02758523]
[1741979710726,5.59827963,85119.0,85118.0,0.02758523]
[1741979711287,5.73299963,85119.0,85118.0,0.02758523]
[1741979712210,6.14689963,85119.0,85118.0,0.02758523]
[1741979712424,6.13231878,85119.0,85118.0,0.02758523]
[1741979712821,6.15577087,85119.0,85118.0,0.02758523]
[1741979713187,6.2753459,85119.0,85118.0,0.02758523]
[1741979713507,6.15577087,85119.0,85118.0,0.02758523]
[1741979716938,6.16461773,85119.0,85118.0,0.02758523]
[1741979717552,6.16461773,85119.0,85118.0,0.02792463]
[1741979718313,0.546741,85109.0,85108.0,0.000339]
[1741979718492,3.685641,85109.0,85108.0,0.000339]
[1741979719415,3.685641,85109.0,85108.0,0.002339]
[1741979720540,3.386541,85109.0,85108.0,0.002339]
[1741979721220,0.546741,85109.0,85108.0,0.002339]
[1741979721437,5.657274,85109.0,85108.0,0.002339]
[1741979721646,5.79527646,85109.0,85108.0,0.002339]
[1741979722987,0.316749,85108.0,85107.0,0.000339]
[1741979723164,0.546774,85098.0,85097.0,0.0827]
[1741979724051,0.56520178,85098.0,85097.0,0.0827]
[1741979724944,0.546782,85095.0,85094.0,0.0467]
[1741979726315,0.546787,85093.0,85092.0,0.0769]
[1741979726529,0.546805,85087.0,85086.0,0.0458]
[1741979728052,0.546805,85087.0,85086.0,0.04560176]
[1741979728909,0.546805,85087.0,85086.0,0.04760176]
[1741979729955,0.56523576,85087.0,85086.0,0.04760176]
[1741979730354,5.67576876,85087.0,85086.0,0.002]
[1741979730981,5.76892512,85087.0,85086.0,0.002]
[1741979731416,5.77392512,85087.0,85086.0,0.002]
[1741979731564,5.90864512,85087.0,85086.0,0.002]
[1741979731765,0.56138385,85074.0,85073.0,0.000339]
[1741979731966,5.67191685,85074.0,85073.0,0.000339]
[1741979732336,0.3,85055.0,85050.0,0.235153]
[1741979733057,0.31499895,85055.0,85050.0,0.235153]
[1741979733267,0.01499895,85055.0,85053.0,0.235145]
[1741979733469,0.3,85056.0,85053.0,0.235145]
[1741979733915,0.31843689,85056.0,85053.0,0.235145]
[1741979734121,0.33361921,85056.0,85053.0,0.235145]
[1741979734365,0.03361921,85056.0,85055.0,0.235141]
[1741979734658,0.03361921,85056.0,85053.0,0.235145]
[1741979735207,0.33361921,85056.0,85054.0,0.1314]
[1741979736013,0.246895,85057.0,85054.0,0.1314]
[1741979736215,0.01843698,85056.0,85054.0,0.1314]
[1741979736638,0.235127,85061.0,85054.0,0.1314]
[1741979736639,0.011754,85071.0,85059.0,0.090356]
[1741979736885,0.011755,85068.0,85059.0,0.0786]
[1741979737080,0.011754,85071.0,85062.0,0.0786]
[1741979737081,0.02676962,85071.0,85062.0,0.0786]
[1741979737305,0.011755,85069.0,85063.0,0.0483]
[1741979737494,0.011755,85069.0,85063.0,0.283419]
[1741979737662,0.01534448,85071.0,85069.0,0.235102]
[1741979737868,0.011754,85076.0,85068.0,0.235106]
[1741979737869,0.235089,85075.0,85070.0,0.0815]
[1741979738067,0.001,85071.0,85070.0,0.0815]
[1741979738678,0.246847,85073.0,85070.0,0.0815]
[1741979739282,0.26528092,85073.0,85070.0,0.0815]
[1741979739677,0.26528092,85073.0,85070.0,0.0825]
[1741979740374,0.246851,85071.0,85070.0,0.0825]
[1741979740598,0.26185605,85071.0,85070.0,0.0825]
[1741979741197,0.26185605,85071.0,85070.0,0.001]
[1741979741596,0.246857,85070.0,85065.0,0.235111]
[1741979742117,0.235112,85066.0,85064.0,0.0829]
[1741979742883,0.246867,85066.0,85065.0,0.001]
[1741979743296,0.246867,85066.0,85064.0,0.0829]
[1741979743297,0.011755,85065.0,85064.0,0.0829]
[1741979743700,0.246886,85059.0,85058.0,0.0829]
[1741979744558,0.2653215,85059.0,85058.0,0.0829]
[1741979744747,0.3,85064.0,85059.0,0.23513]
[1741979744951,0.535116,85065.0,85060.0,0.235126]
[1741979745156,0.3,85065.0,85060.0,0.235126]
[1741979745307,0.011753,85078.0,85065.0,0.082]
[1741979745647,0.011754,85073.0,85066.0,0.235111]
[1741979745806,0.011754,85071.0,85065.0,0.082]
[1741979746492,0.235103,85069.0,85065.0,0.082]
[1741979746699,0.246866,85067.0,85065.0,0.082]
[1741979746902,0.235107,85068.0,85066.0,0.001]
[1741979748046,0.235107,85068.0,85065.0,0.082]
[1741979748047,0.235111,85066.0,85065.0,0.082]
[1741979748403,0.235111,85066.0,85065.0,0.084]
[1741979748794,0.235111,85066.0,85065.0,0.082]
[1741979748955,0.246866,85066.0,85065.0,0.082]
[1741979749154,0.246866,85066.0,85065.0,0.085]
[1741979749520,0.546866,85066.0,85065.0,0.003]
[1741979752292,0.246906,85053.0,85048.0,0.23516]
[1741979752495,0.246906,85053.0,85047.0,0.0757]
[1741979752939,0.011757,85052.0,85047.0,0.310863]
[1741979753233,0.011757,85052.0,85047.0,0.0757]
[1741979753461,0.011757,85052.0,85051.0,0.0033396]
[1741979754905,0.011757,85052.0,85051.0,0.0003396]
[1741979755083,0.011757,85052.0,85051.0,0.0033396]
[1741979755428,0.08767044,85052.0,85051.0,0.0033396]
[1741979755631,0.011757,85052.0,85051.0,0.0033396]
[1741979757445,0.311757,85052.0,85051.0,0.0033396]
[1741979758016,5.107557,85052.0,85051.0,0.0033396]
[1741979758222,2.751557,85052.0,85051.0,0.0033396]
[1741979758628,2.751557,85052.0,85051.0,0.0003396]
[1741979759031,2.751557,85052.0,85051.0,0.0023396]
[1741979759313,2.751557,85052.0,85051.0,0.0003396]
[1741979759780,2.76609785,85052.0,85051.0,0.0003396]
[1741979760479,2.7891275,85052.0,85051.0,0.0003396]
[1741979760908,1.31438665,85052.0,85051.0,0.0003396]
[1741979761185,0.311757,85052.0,85051.0,0.0003396]
[1741979761356,0.33019496,85052.0,85051.0,0.0003396]
[1741979766655,0.3,85043.0,85039.0,0.2305236]
[1741979766874,0.235174,85044.0,85037.0,0.0003392]
[1741979766875,0.3,85039.0,85037.0,0.0003392]
[1741979767518,0.38844038,85039.0,85037.0,0.0003392]
[1741979767718,0.31844038,85039.0,85037.0,0.2355292]
[1741979767912,0.01844038,85039.0,85037.0,0.2355292]
[1741979768122,0.3336339,85039.0,85037.0,0.0003392]
[1741979768288,0.3453929,85039.0,85037.0,0.0003392]
[1741979768899,0.3336339,85039.0,85037.0,0.0003392]
[1741979769112,0.0336339,85039.0,85037.0,0.0003392]
[1741979769320,0.0336339,85039.0,85038.0,0.093959]
[1741979769321,0.01844038,85039.0,85038.0,0.093959]
[1741979769523,0.0001698,85066.0,85055.0,0.246898]
[1741979769726,0.011755,85063.0,85055.0,0.367141]
[1741979769935,0.246878,85062.0,85055.0,0.367141]
[1741979770153,0.3,85061.0,85055.0,0.367141]
[1741979770360,0.01560133,85056.0,85055.0,0.378898]
[1741979770690,0.03403773,85056.0,85055.0,0.378898]
[1741979770995,0.03403773,85056.0,85055.0,0.36704182]
[1741979771942,0.03403773,85056.0,85055.0,0.132]
[1741979772319,0.246909,85052.0,85047.0,0.361462]
[1741979772705,0.26917873,85056.0,85047.0,0.361462]
[1741979772910,0.03403773,85056.0,85052.0,0.235148]
[1741979773111,0.03403773,85056.0,85054.0,0.235142]
[1741979773313,0.03403773,85056.0,85049.0,0.011757]
[1741979773515,0.33403773,85056.0,85051.0,0.235153]
[1741979773823,0.33403773,85056.0,85053.0,0.235145]
[1741979774431,0.33403773,85056.0,85054.0,0.235142]
[1741979774632,0.03403773,85056.0,85055.0,0.011757]
[1741979775385,0.01560133,85056.0,85055.0,0.011757]
[1741979776346,0.01560133,85056.0,85055.0,0.088457]
[1741979776536,0.01560133,85056.0,85055.0,0.091457]
[1741979777315,0.01560133,85056.0,85055.0,0.0797]
[1741979778085,0.03403689,85056.0,85055.0,0.0797]
[1741979778658,0.546907,85052.0,85051.0,0.0003396]
[1741979779838,0.56144785,85052.0,85051.0,0.0033396]
[1741979780043,0.58948317,85052.0,85051.0,0.0033396]
[1741979780259,5.70001617,85052.0,85051.0,0.0033396]
[1741979780480,5.8195912,85052.0,85051.0,0.0033396]
[1741979780732,5.70895715,85052.0,85051.0,0.0033396]
[1741979781223,5.70895715,85052.0,85051.0,0.0003396]
[1741979781445,5.70995715,85052.0,85051.0,0.0003396]
[1741979781977,5.70895715,85052.0,85051.0,0.0003396]
[1741979782327,5.82895715,85052.0,85051.0,0.0003396]
[1741979782509,6.29173218,85052.0,85051.0,0.0003396]
[1741979783242,0.546947,85038.0,85034.0,0.0003392]
[1741979783439,2.962047,85038.0,85034.0,0.0003392]
[1741979783644,0.913659,85038.0,85034.0,0.0003392]
[1741979783824,0.3,85038.0,85035.0,0.235195]
[1741979784182,0.3,85038.0,85034.0,0.0003392]
[1741979784371,0.311759,85038.0,85034.0,0.0003392]
[1741979784777,0.3,85038.0,85034.0,0.0003392]
[1741979784994,0.311759,85038.0,85034.0,0.0003392]
[1741979785553,0.313759,85038.0,85034.0,0.0003392]
[1741979786179,0.311759,85038.0,85034.0,0.0003392]
[1741979786947,0.33020151,85038.0,85034.0,0.0003392]
[1741979791541,0.34474236,85038.0,85034.0,0.0003392]
[1741979791927,5.45527536,85038.0,85034.0,0.0003392]
[1741979793212,0.011762,85019.0,85012.0,0.06633]
[1741979793639,0.3,85015.0,85012.0,0.06633]
[1741979794196,0.547016,85015.0,85012.0,0.06633]
[1741979794436,0.24702,85014.0,85012.0,0.06633]
[1741979794601,0.3,85013.0,85012.0,0.06733]
[1741979794960,0.31861158,85013.0,85012.0,0.06733]
[1741979795097,0.011763,85011.0,85002.0,0.13476]
[1741979795304,0.247026,85011.0,85003.0,0.235283]
[1741979795507,0.011763,85010.0,85003.0,0.235283]
[1741979795912,0.247031,85010.0,84999.0,0.235294]
[1741979796112,0.011763,85009.0,85007.0,0.0764]
[1741979796362,0.12018406,85009.0,85002.0,0.0764]
[1741979796560,0.12018406,85009.0,85002.0,0.311687]
[1741979796774,0.03020797,85009.0,85002.0,0.311687]
[1741979796987,0.03020797,85009.0,85002.0,0.0764]
[1741979797150,0.03020797,85009.0,85008.0,0.0013392]
[1741979797765,0.03020797,85009.0,85008.0,0.0003392]
[1741979797953,0.03020797,85009.0,85008.0,0.0013392]
[1741979798373,0.33020797,85009.0,85008.0,0.0013392]
[1741979798693,0.311763,85009.0,85008.0,0.0013392]
[1741979801086,0.311763,85009.0,85008.0,0.0003392]
[1741979801284,0.311763,85009.0,85008.0,0.0013392]
[1741979801600,0.33020894,85009.0,85008.0,0.0013392]
[1741979802071,0.01844594,85009.0,85008.0,0.0013392]
[1741979802621,0.03020894,85009.0,85008.0,0.0013392]
[1741979803351,0.235267,85010.0,85008.0,0.0013392]
[1741979803556,0.011763,85009.0,85008.0,0.0013392]
[1741979804366,0.011763,85009.0,85008.0,0.0003392]
[1741979804517,0.011763,85009.0,85008.0,0.0013392]
[1741979804982,0.011763,85009.0,85008.0,0.0003392]
[1741979806490,0.011763,85009.0,85008.0,0.0013392]
[1741979808187,0.33037358,85013.0,85009.0,0.0832]
[1741979808574,0.235264,85011.0,85009.0,0.0832]
[1741979808781,0.011763,85010.0,85009.0,0.0832]
[1741979809684,0.03705744,85013.0,85012.0,0.247023]
[1741979809926,0.01844586,85013.0,85012.0,0.247023]
[1741979810148,0.01844586,85013.0,85012.0,0.327323]
[1741979810475,0.01844586,85013.0,85012.0,0.372423]
[1741979811286,0.01944586,85013.0,85012.0,0.373423]
[1741979811903,0.01944586,85013.0,85012.0,2.008183]
[1741979812520,0.01844586,85013.0,85012.0,2.007183]
[1741979812986,0.01944586,85013.0,85012.0,2.008183]
[1741979813324,0.01844586,85013.0,85012.0,2.007183]
[1741979813509,0.01911879,85038.0,85035.0,0.235195]
[1741979813862,0.235185,85040.0,85036.0,0.13376]
[1741979814069,0.011758,85042.0,85037.0,0.235191]
[1741979814623,0.246937,85042.0,85036.0,0.13376]
[1741979814936,0.246937,85042.0,85036.0,0.368952]
[1741979815511,0.26625491,85042.0,85036.0,0.235192]
[1741979815768,0.246942,85040.0,85036.0,0.13472]
[1741979816442,0.235186,85039.0,85036.0,0.13472]
[1741979816658,0.03107591,85042.0,85036.0,0.371914]
[1741979817033,0.03107591,85042.0,85038.0,0.235187]
[1741979817357,0.01931791,85042.0,85038.0,0.235187]
[1741979817559,0.01931791,85042.0,85040.0,0.235181]
[1741979817705,0.235185,85040.0,85036.0,0.13772]
[1741979818322,0.011759,85041.0,85036.0,0.372912]
[1741979818468,0.01859722,85042.0,85038.0,0.235188]
[1741979818678,0.01859722,85042.0,85039.0,0.235183]
[1741979818877,0.01859722,85042.0,85039.0,0.235184]
[1741979819075,0.01859722,85042.0,85037.0,0.235191]
[1741979819316,0.246946,85039.0,85036.0,0.13772]
[1741979819517,0.011759,85038.0,85036.0,0.13472]
[1741979819718,0.011759,85040.0,85036.0,0.13472]
[1741979819924,0.011759,85037.0,85036.0,0.13472]
[1741979820132,0.01176,85029.0,85020.0,0.0773]
[1741979820363,0.01176,85029.0,85022.0,0.235232]
[1741979820571,0.246981,85027.0,85021.0,0.13472]
[1741979820719,0.01176,85028.0,85021.0,0.13472]
[1741979820922,0.246978,85028.0,85023.0,0.235228]
[1741979821122,0.011762,85019.0,85015.0,0.0789]
[1741979821409,0.011762,85018.0,85016.0,0.13472]
[1741979821910,0.011761,85022.0,85016.0,0.13472]
[1741979822111,0.011761,85022.0,85017.0,0.235244]
[1741979823393,0.24699,85024.0,85018.0,0.235244]
[1741979823595,0.01844277,85021.0,85020.0,0.011761]
[1741979824141,0.01844277,85021.0,85019.0,0.235238]
[1741979826544,0.25367877,85021.0,85016.0,0.369967]
[1741979826744,0.01844277,85021.0,85019.0,0.0003398]
[1741979826969,0.01844277,85021.0,85019.0,0.0023398]
[1741979827285,0.01844277,85021.0,85019.0,0.2375788]
[1741979827460,0.01844277,85021.0,85019.0,0.2355788]
[1741979828285,0.01844277,85021.0,85019.0,0.0003398]
[1741979828442,0.01844277,85021.0,85019.0,0.2355798]
[1741979829088,0.01844277,85021.0,85019.0,0.2473418]
[1741979829485,0.01844277,85021.0,85019.0,0.2493418]
[1741979829660,0.235218,85028.0,85023.0,0.235229]
[1741979830083,0.24698,85027.0,85021.0,0.235234]
[1741979830477,0.24698,85027.0,85022.0,0.235231]
[1741979830697,0.3,85030.0,85022.0,0.235231]
[1741979831091,0.535212,85030.0,85024.0,0.235227]
[1741979831295,0.546972,85030.0,85024.0,0.235227]
[1741979831654,0.3,85032.0,85031.0,0.235208]
[1741979831857,0.3,85032.0,85028.0,0.235216]
[1741979831858,0.03037204,85036.0,85030.0,0.235209]
[1741979834558,0.246962,85034.0,85031.0,0.13472]
[1741979834910,0.235205,85033.0,85031.0,0.13472]
[1741979835684,0.246965,85033.0,85031.0,0.13472]
[1741979836338,0.246962,85034.0,85031.0,0.13472]
[1741979836510,0.246965,85033.0,85031.0,0.13472]
[1741979836692,0.246965,85033.0,85031.0,0.13572]
[1741979837139,0.246965,85033.0,85031.0,0.13472]
[1741979837535,0.246965,85033.0,85031.0,0.13572]
[1741979837739,0.33037204,85036.0,85031.0,0.13572]
[1741979837740,0.56556904,85036.0,85031.0,0.13572]
[1741979837939,0.246958,85035.0,85031.0,0.13572]
[1741979838435,0.235204,85033.0,85031.0,0.13572]
[1741979838635,0.235204,85033.0,85031.0,0.13472]
[1741979838845,0.246958,85035.0,85031.0,0.13472]
[1741979839053,0.246958,85035.0,85031.0,0.13572]
[1741979839325,0.235205,85033.0,85031.0,0.13572]
[1741979839527,0.235205,85033.0,85031.0,0.1360592]
[1741979839702,0.235205,85033.0,85031.0,0.1350592]
[1741979840853,0.246965,85033.0,85031.0,0.1350592]
[1741979841233,0.01176,85032.0,85031.0,0.1350592]
[1741979841760,0.246965,85033.0,85031.0,0.1350592]
[1741979841961,0.246965,85033.0,85031.0,0.1360592]
[1741979842397,0.01176,85033.0,85031.0,0.1350592]
[1741979842617,0.31176,85032.0,85031.0,0.0003392]
[1741979842823,1.08696,85032.0,85031.0,0.0013392]
[1741979843270,1.08696,85032.0,85031.0,0.0003392]
[1741979843472,1.08696,85032.0,85031.0,0.0013392]
[1741979844688,1.11046145,85032.0,85031.0,0.0013392]
[1741979844854,1.11046145,85032.0,85031.0,0.0003392]
[1741979845343,1.11046145,85032.0,85031.0,0.0013392]
[1741979845895,0.81046145,85032.0,85031.0,0.0013392]
[1741979846673,0.251999,85020.0,85008.0,0.0003392]
[1741979846891,0.011763,85010.0,85008.0,0.0003392]
[1741979847113,0.247029,85011.0,85008.0,0.0003392]
[1741979847315,0.011763,85009.0,85008.0,0.0003392]
[1741979847764,0.235269,85010.0,85008.0,0.0003392]
[1741979847765,0.3,85012.0,85008.0,0.0003392]
[1741979847938,0.011763,85009.0,85008.0,0.0003392]
[1741979848366,0.247032,85009.0,85008.0,0.0003392]
[1741979849076,0.247032,85009.0,85008.0,0.0023392]
[1741979853117,0.547032,85009.0,85008.0,0.0023392]
[1741979853542,0.56547978,85009.0,85008.0,0.0023392]
[1741979854959,0.67260906,85009.0,85008.0,0.0023392]
[1741979855262,0.56547978,85009.0,85008.0,0.0023392]
[1741979856008,0.56547978,85009.0,85008.0,0.0013392]
[1741979859247,0.247052,85002.0,85001.0,0.13472]
[1741979861334,0.247052,85002.0,85001.0,0.13572]
[1741979863619,0.247052,85002.0,85001.0,0.13596007]
[1741979864663,0.26475066,85002.0,85001.0,0.0013392]
[1741979866782,0.56475066,85002.0,85001.0,0.0013392]
[1741979867573,0.56475066,85002.0,85001.0,0.0003392]
[1741979868345,5.75058366,85002.0,85001.0,0.0003392]
[1741979868743,4.48875066,85002.0,85001.0,0.0003392]
[1741979869422,2.46265066,85002.0,85001.0,0.0003392]
[1741979869760,2.20265066,85002.0,85001.0,0.0003392]
[1741979869927,0.58320086,85002.0,85001.0,0.0003392]
[1741979870905,0.58420086,85002.0,85001.0,0.0003392]
[1741979871519,0.58320086,85002.0,85001.0,0.0003392]
[1741979872170,0.312264,85001.0,85000.0,0.0001784]
[1741979873321,0.012264,85001.0,85000.0,0.0001784]
[1741979874867,1.790464,85001.0,85000.0,0.0001784]
[1741979876931,1.91003903,85001.0,85000.0,0.0001784]
[1741979877195,2.03213903,85001.0,85000.0,0.0001784]
[1741979877575,1.912564,85001.0,85000.0,0.0001784]
[1741979878484,1.913564,85001.0,85000.0,0.0001784]
[1741979880187,1.93201571,85001.0,85000.0,0.0001784]
[1741979880408,2.36045656,85001.0,85000.0,0.0001784]
[1741979880630,0.547081,84992.0,84991.0,0.0008]
[1741979880830,4.993081,84992.0,84991.0,0.0008]
[1741979881048,4.536681,84992.0,84991.0,0.0008]
[1741979881223,2.735881,84992.0,84991.0,0.0008]
[1741979881593,2.75433366,84992.0,84991.0,0.0008]
[1741979881798,2.03603366,84992.0,84991.0,0.0008]
[1741979882000,1.92083366,84992.0,84991.0,0.0008]